Workbook

Sheet Balloon Loan Amortization Sched
B1: BALLOON LOAN AMORTIZATION SCHEDULE
B3: LENDER NAME | G3: DATA | I3: VALUE
B4: LENDER ADDRESS | G4: INPUT
G5: PURCHASE PRICE | I5: 100000
G6: PERCENT OF DOWN PAYMENT | I6: 0.2
B7: LENDER PHONE | G7: TOTAL DOWN PAYMENT | I7: =I6*I5 -> 20000
B8: LENDER WEB | D8: www. | G8: LOAN AMOUNT | I8: =I5-I7 -> 80000
B9: CONTACT EMAIL | G9: ANNUAL INTEREST RATE | I9: 0.045
B10: LOAN TYPE | G10: AMORTIZATION PERIOD | I10: 20
B11: DATE OF LOAN | G11: NUMBER OF PAYMENTS | I11: 10
B12: NAME ON LOAN | G12: INTEREST ONLY | I12: NO
G13: FIRST PAYMENT DATE | I13: 2018-05-01 | J13: =($I$12="yes") -> FALSE
G14: *** Complete WHITE fields above only ***
G15: CALCULATED OUTPUT
G16: MONTHLY PAYMENT | I16: =IF(J13,ROUND(I9/12*I8,2),ROUND(PMT(I9/12,I10,-I8),2)) -> 4159.37
G17: BALLOON PAYMENT | I17: =OFFSET(E21,I11+1,0,1,1) -> 44907.85
G18: TOTAL AMOUNT PAID | I18: =SUM(OFFSET(E21,2,0,I11,1)) -> 82342.18
G19: INTEREST TOTAL | I19: =I18-I8 -> 2342.18
B20: BALLOON LOAN AMORTIZATION SCHEDULE
B21: PYMNT PERIOD | C21: DATE OF PAYMENT | D21: BEGINNING BALANCE | E21: SCHEDULED PAYMENT | F21: INTEREST | G21: PRINCIPAL | H21: BALANCE
H22: =I8 -> 80000
B23: 1 | C23: =$I$13 -> 2018-05-01 | D23: =H22 -> 80000 | E23: =IF(B23="","",IF(B23=$I$11,I8+F23,$I$16)) -> 4159.37 | F23: =IF(B23="","",ROUND($I$9/12*H22,2)) -> 300 | G23: =IF(B23="","",E23-F23) -> 3859.37 | H23: =IF(B23="","",H22-G23) -> 76140.63
B24: =IF(B23>=$I$11,"",B23+1) -> 2 | C24: =IF(B24="","",DATE(YEAR(C23),MONTH(C23)+1,DAY(C23))) -> 2018-06-01 | D24: =IF(ISERROR(IF((ROUND(H23,1)>0),H23,"")),"",(IF((ROUND(H23,1)>0),H23,""))) -> 76140.63 | E24: =IF(B24="","",IF(B24=$I$11,H23+F24,$I$16)) -> 4159.37 | F24: =IF(B24="","",ROUND($I$9/12*H23,2)) -> 285.53 | G24: 3873.84 | I24: =IF(B24="","",H23-G24) -> 72266.79
B25: 3 | C25: 2018-07-01 | D25: =IF(ISERROR(IF((ROUND(I24,1)>0),I24,"")),"",(IF((ROUND(I24,1)>0),I24,""))) -> 72266.79 | E25: =IF(B25="","",IF(B25=$I$11,I24+F25,$I$16)) -> 4159.37 | F25: =IF(B25="","",ROUND($I$9/12*I24,2)) -> 271 | G25: 3888.37 | I25: =IF(B25="","",I24-G25) -> 68378.42
B26: 4 | C26: 2018-08-01 | D26: 68378.42 | E26: 4159.37 | F26: 256.42 | G26: 3902.95 | I26: 64475.47
B27: 5 | C27: 2018-09-01 | D27: 64475.47 | E27: 4159.37 | F27: 241.78 | G27: 3917.59 | I27: 60557.88
B28: 6 | C28: 2018-10-01 | D28: 60557.88 | E28: 4159.37 | F28: 227.09 | G28: 3932.28 | I28: 56625.6
B29: 7 | C29: 2018-11-01 | D29: 56625.6 | E29: 4159.37 | F29: 212.35 | G29: 3947.02 | I29: 52678.58
B30: 8 | C30: 2018-12-01 | D30: 52678.58 | E30: 4159.37 | F30: 197.54 | G30: 3961.83 | I30: 48716.75
B31: 9 | C31: 2019-01-01 | D31: 48716.75 | E31: 4159.37 | F31: 182.69 | G31: 3976.68 | I31: 44740.07
B32: 10 | C32: 2019-02-01 | D32: 44740.07 | E32: 44907.85 | F32: 167.78 | G32: 44740.07 | I32: 0
E35: =IF(B35="","",IF(B35=$I$11,I34+F37,$I$16)) -> 
E50: =IF(B50="","",IF(B50=$I$11,I49+G52,$I$16)) -> 
E51: =IF(B51="","",IF(B51=$I$11,I50+G53,$I$16)) -> 
B53: CLICK HERE TO CREATE BALLOON LOAN AMORTIZATION SCHEDULE TEMPLATES IN SMARTSHEET
